[Event "*** Titled Tuesday Blitz"]
[Site "Chess.com"]
[Date "2021.04.06"]
[Round "6"]
[White "BanjoKazooieN64"]
[Black "TimKett"]
[Result "1/2-1/2"]
[WhiteElo "2456"]
[BlackElo "2243"]
[TimeControl "180+1"]
[EndTime "11:08:10 PDT"]
[Termination "Game drawn - insufficient material"]

1. e4 {[%clk 0:03:00.9]} 1... e5 {[%clk 0:02:59.7]} 2. Nf3 {[%clk 0:03:00.3]}
2... Nc6 {[%clk 0:02:59.5]} 3. Bc4 {[%clk 0:03:00.4]} 3... Nf6 {[%clk
0:02:58.7]} 4. Ng5 {[%clk 0:03:00.4]} 4... d5 {[%clk 0:02:57.8]} 5. exd5 {[%clk
0:03:01.3]} 5... Na5 {[%clk 0:02:57.6]} 6. Bb5+ {[%clk 0:03:01.8]} 6... c6
{[%clk 0:02:57.8]} 7. dxc6 {[%clk 0:03:02.7]} 7... bxc6 {[%clk 0:02:57.9]} 8.
Qf3 {[%clk 0:03:03.4]} 8... Be7 {[%clk 0:02:57.1]} 9. Bd3 {[%clk 0:03:03.3]}
9... O-O {[%clk 0:02:55.2]} 10. O-O {[%clk 0:03:03.5]} 10... h6 {[%clk
0:02:54.7]} 11. Ne4 {[%clk 0:03:03.8]} 11... Nd5 {[%clk 0:02:53.5]} 12. Ng3
{[%clk 0:03:04]} 12... Nf4 {[%clk 0:02:49.1]} 13. Bf5 {[%clk 0:03:03]} 13... Bb7
{[%clk 0:02:25.3]} 14. d3 {[%clk 0:02:56.6]} 14... c5 {[%clk 0:02:03.3]} 15. Be4
{[%clk 0:02:56.6]} 15... Bxe4 {[%clk 0:01:45.4]} 16. dxe4 {[%clk 0:02:56.7]}
16... Bg5 {[%clk 0:01:20.6]} 17. Nc3 {[%clk 0:02:55.6]} 17... Nc6 {[%clk
0:01:16.7]} 18. Bxf4 {[%clk 0:02:51.2]} 18... exf4 {[%clk 0:01:05.9]} 19. Nf5
{[%clk 0:02:49]} 19... g6 {[%clk 0:01:04.2]} 20. Rad1 {[%clk 0:02:47]} 20... Ne5
{[%clk 0:00:25.6]} 21. Qh3 {[%clk 0:02:41.9]} 21... Qb6 {[%clk 0:00:14.1]} 22.
Nd5 {[%clk 0:02:36.3]} 22... Qxb2 {[%clk 0:00:12.6]} 23. Nxh6+ {[%clk
0:02:36.5]} 23... Kg7 {[%clk 0:00:11.4]} 24. Nf5+ {[%clk 0:02:22.9]} 24... gxf5
{[%clk 0:00:10.4]} 25. Qxf5 {[%clk 0:02:23.8]} 25... f6 {[%clk 0:00:08.4]} 26.
Ne7 {[%clk 0:02:14.6]} 26... Rh8 {[%clk 0:00:06.6]} 27. Nc6 {[%clk 0:02:02.8]}
27... f3 {[%clk 0:00:05]} 28. Nxe5 {[%clk 0:01:59.2]} 28... Qxe5 {[%clk
0:00:03.5]} 29. Rd7+ {[%clk 0:01:59.3]} 29... Kf8 {[%clk 0:00:02.9]} 30. Qxe5
{[%clk 0:01:58.2]} 30... fxe5 {[%clk 0:00:03]} 31. g3 {[%clk 0:01:56.7]} 31...
Re8 {[%clk 0:00:01.7]} 32. Rxa7 {[%clk 0:01:53]} 32... Re7 {[%clk 0:00:01.8]}
33. Ra5 {[%clk 0:01:53]} 33... Reh7 {[%clk 0:00:01.2]} 34. h4 {[%clk 0:01:44.8]}
34... Bxh4 {[%clk 0:00:01.5]} 35. Ra8+ {[%clk 0:01:44.9]} 35... Ke7 {[%clk
0:00:01.8]} 36. Rxh8 {[%clk 0:01:44.9]} 36... Rxh8 {[%clk 0:00:02.3]} 37. gxh4
{[%clk 0:01:45.2]} 37... Rxh4 {[%clk 0:00:02.5]} 38. Re1 {[%clk 0:01:43.4]}
38... Rg4+ {[%clk 0:00:02.3]} 39. Kf1 {[%clk 0:01:42]} 39... Rh4 {[%clk
0:00:02.5]} 40. Kg1 {[%clk 0:01:42.4]} 40... Rg4+ {[%clk 0:00:02.9]} 41. Kh2
{[%clk 0:01:23.4]} 41... Rg2+ {[%clk 0:00:02.9]} 42. Kh3 {[%clk 0:01:23.7]}
42... Rxf2 {[%clk 0:00:03.6]} 43. Rc1 {[%clk 0:01:14]} 43... Re2 {[%clk
0:00:03.1]} 44. Kg3 {[%clk 0:01:13.7]} 44... Rxe4 {[%clk 0:00:03.6]} 45. Kxf3
{[%clk 0:01:13.3]} 45... Ra4 {[%clk 0:00:04.2]} 46. Ra1 {[%clk 0:01:13]} 46...
Rc4 {[%clk 0:00:04.3]} 47. Rc1 {[%clk 0:01:11.7]} 47... Ra4 {[%clk 0:00:04.3]}
48. Ra1 {[%clk 0:01:09.4]} 48... Rc4 {[%clk 0:00:04.4]} 49. a4 {[%clk 0:01:10]}
49... Rxc2 {[%clk 0:00:04.6]} 50. a5 {[%clk 0:01:10.3]} 50... Rd2 {[%clk
0:00:05.2]} 51. a6 {[%clk 0:01:10.3]} 51... Rd8 {[%clk 0:00:05.8]} 52. a7 {[%clk
0:01:10.4]} 52... Ra8 {[%clk 0:00:06.3]} 53. Ke4 {[%clk 0:01:09.9]} 53... Kd6
{[%clk 0:00:06.2]} 54. Ra6+ {[%clk 0:01:08.8]} 54... Kc7 {[%clk 0:00:06.4]} 55.
Kxe5 {[%clk 0:01:09.2]} 55... Kb7 {[%clk 0:00:06.6]} 56. Ra5 {[%clk 0:01:05.7]}
56... Rxa7 {[%clk 0:00:06.6]} 57. Rxc5 {[%clk 0:01:05.9]} 57... Kb6 {[%clk
0:00:06.7]} 58. Rd5 {[%clk 0:01:06.1]} 58... Ra5 {[%clk 0:00:06.5]} 59. Rxa5
{[%clk 0:01:06.1]} 59... Kxa5 {[%clk 0:00:07]} 1/2-1/2

[Event "*** Titled Tuesday Blitz"]
[Site "Chess.com"]
[Date "2021.04.06"]
[Round "6"]
[White "colegiodemadrid"]
[Black "Konek-Gorbunok"]
[Result "1-0"]
[WhiteElo "2499"]
[BlackElo "2331"]
[TimeControl "180+1"]
[EndTime "11:08:11 PDT"]
[Termination "colegiodemadrid won on time"]

1. e4 {[%clk 0:03:00.9]} 1... c5 {[%clk 0:02:59.5]} 2. Nf3 {[%clk 0:02:59.5]}
2... a6 {[%clk 0:02:59.7]} 3. Nc3 {[%clk 0:02:58.3]} 3... Nc6 {[%clk 0:02:58.6]}
4. d4 {[%clk 0:02:58.1]} 4... cxd4 {[%clk 0:02:59.5]} 5. Nxd4 {[%clk 0:02:58.5]}
5... e5 {[%clk 0:03:00]} 6. Nf5 {[%clk 0:02:52.9]} 6... d6 {[%clk 0:02:59.1]} 7.
Bc4 {[%clk 0:02:49.6]} 7... Bxf5 {[%clk 0:02:58.4]} 8. exf5 {[%clk 0:02:49.1]}
8... Nf6 {[%clk 0:02:58.2]} 9. O-O {[%clk 0:02:46.9]} 9... Be7 {[%clk
0:02:57.4]} 10. Nd5 {[%clk 0:02:46.2]} 10... Nxd5 {[%clk 0:02:55]} 11. Bxd5
{[%clk 0:02:42.8]} 11... O-O {[%clk 0:02:55]} 12. c3 {[%clk 0:02:42]} 12... Rc8
{[%clk 0:02:54.3]} 13. Qb3 {[%clk 0:02:39.5]} 13... Qc7 {[%clk 0:02:52.5]} 14.
Rd1 {[%clk 0:02:37.1]} 14... Na5 {[%clk 0:02:48.9]} 15. Qc2 {[%clk 0:02:35.7]}
15... Nc4 {[%clk 0:02:43.1]} 16. Qe4 {[%clk 0:02:30.5]} 16... Na5 {[%clk
0:02:30.2]} 17. Be3 {[%clk 0:02:24.5]} 17... b5 {[%clk 0:02:24.5]} 18. a4 {[%clk
0:02:23.5]} 18... Nc4 {[%clk 0:02:22.1]} 19. axb5 {[%clk 0:02:21.5]} 19... axb5
{[%clk 0:02:20.5]} 20. Ra7 {[%clk 0:02:20]} 20... Qd8 {[%clk 0:02:15.6]} 21.
Rda1 {[%clk 0:02:07.6]} 21... Nxb2 {[%clk 0:02:07.6]} 22. Qb4 {[%clk 0:02:05.1]}
22... Nc4 {[%clk 0:01:58.4]} 23. Qxb5 {[%clk 0:02:05.1]} 23... Nxe3 {[%clk
0:01:56.9]} 24. fxe3 {[%clk 0:02:05.7]} 24... Rxc3 {[%clk 0:01:54.5]} 25. Rd7
{[%clk 0:02:03.7]} 25... Qc8 {[%clk 0:01:24.7]} 26. Rxe7 {[%clk 0:01:58.1]}
26... Rc1+ {[%clk 0:01:24.4]} 27. Rxc1 {[%clk 0:01:56]} 27... Qxc1+ {[%clk
0:01:23.5]} 28. Kf2 {[%clk 0:01:42.1]} 28... Qd2+ {[%clk 0:01:22.1]} 29. Kf3
{[%clk 0:01:37.5]} 29... Qd1+ {[%clk 0:01:14.2]} 30. Kg3 {[%clk 0:01:33.5]}
30... Qe1+ {[%clk 0:01:10.3]} 31. Kg4 {[%clk 0:01:30.3]} 31... Qxe3 {[%clk
0:01:04.1]} 32. Bxf7+ {[%clk 0:01:08.3]} 32... Kh8 {[%clk 0:01:00.6]} 33. Qc4
{[%clk 0:00:55.1]} 33... h6 {[%clk 0:00:36.2]} 34. Re8 {[%clk 0:00:54.2]} 34...
Qg5+ {[%clk 0:00:27.4]} 35. Kf3 {[%clk 0:00:49.4]} 35... Qxf5+ {[%clk
0:00:20.6]} 36. Ke2 {[%clk 0:00:50]} 36... Rxe8 {[%clk 0:00:15]} 37. Bxe8 {[%clk
0:00:49.8]} 37... Qg5 {[%clk 0:00:07.2]} 38. Bc6 {[%clk 0:00:47.4]} 38... Qf6
{[%clk 0:00:03.8]} 39. Be4 {[%clk 0:00:45.8]} 39... g6 {[%clk 0:00:03.8]} 40.
Qc7 {[%clk 0:00:43.2]} 40... Qf4 {[%clk 0:00:02.2]} 41. Qd8+ {[%clk 0:00:38.6]}
41... Kg7 {[%clk 0:00:01.7]} 42. Qe7+ {[%clk 0:00:38.9]} 42... Qf7 {[%clk
0:00:01.9]} 43. Qxd6 {[%clk 0:00:38]} 1-0

[Event "*** Titled Tuesday Blitz"]
[Site "Chess.com"]
[Date "2021.04.06"]
[Round "6"]
[White "kamilianin235"]
[Black "fabianvivasz"]
[Result "1-0"]
[WhiteElo "2265"]
[BlackElo "2402"]
[TimeControl "180+1"]
[EndTime "11:08:11 PDT"]
[Termination "kamilianin235 won on time"]

1. e4 {[%clk 0:03:00.9]} 1... e5 {[%clk 0:02:56.2]} 2. Nf3 {[%clk 0:03:00.2]}
2... Nc6 {[%clk 0:02:55.6]} 3. Bc4 {[%clk 0:03:00.5]} 3... Nf6 {[%clk 0:02:55]}
4. d3 {[%clk 0:03:00.5]} 4... Bc5 {[%clk 0:02:54.6]} 5. c3 {[%clk 0:03:00.7]}
5... O-O {[%clk 0:02:53.4]} 6. a4 {[%clk 0:03:00.8]} 6... a6 {[%clk 0:02:45.5]}
7. Nbd2 {[%clk 0:03:00.7]} 7... d5 {[%clk 0:02:30.2]} 8. exd5 {[%clk 0:02:58.9]}
8... Nxd5 {[%clk 0:02:31.1]} 9. Ne4 {[%clk 0:02:58.4]} 9... Be7 {[%clk
0:02:29.6]} 10. O-O {[%clk 0:02:57.6]} 10... h6 {[%clk 0:02:12.4]} 11. Re1
{[%clk 0:02:56.3]} 11... Bg4 {[%clk 0:01:58.3]} 12. h3 {[%clk 0:02:53.4]} 12...
Bh5 {[%clk 0:01:58]} 13. Ng3 {[%clk 0:02:52]} 13... Bg6 {[%clk 0:01:49.4]} 14.
Nxe5 {[%clk 0:02:49.3]} 14... Nxe5 {[%clk 0:01:48.6]} 15. Rxe5 {[%clk
0:02:43.6]} 15... Nb6 {[%clk 0:01:48.9]} 16. Be3 {[%clk 0:02:17.7]} 16... Bd6
{[%clk 0:01:40.2]} 17. Ra5 {[%clk 0:02:04.2]} 17... Nxc4 {[%clk 0:01:31.9]} 18.
dxc4 {[%clk 0:02:01.6]} 18... c6 {[%clk 0:01:18.7]} 19. b4 {[%clk 0:01:59.8]}
19... Qf6 {[%clk 0:00:19]} 20. Bd4 {[%clk 0:01:54]} 20... Qh4 {[%clk 0:00:15.7]}
21. Qf3 {[%clk 0:01:46.5]} 21... Bc7 {[%clk 0:00:14]} 22. Rf5 {[%clk 0:01:38]}
22... Rad8 {[%clk 0:00:03.9]} 23. Re1 {[%clk 0:01:31.4]} 23... Rxd4 {[%clk
0:00:01.9]} 24. cxd4 {[%clk 0:01:30.1]} 24... Bxg3 {[%clk 0:00:02.4]} 25. fxg3
{[%clk 0:01:26.9]} 25... Qxd4+ {[%clk 0:00:02.7]} 26. Qf2 {[%clk 0:01:27.3]}
26... Qxc4 {[%clk 0:00:03.2]} 27. Rf4 {[%clk 0:01:26.8]} 27... Qd5 {[%clk
0:00:03.1]} 28. Qc5 {[%clk 0:01:23.7]} 28... Qb3 {[%clk 0:00:02.7]} 29. Rf3
{[%clk 0:01:20.6]} 29... Qxa4 {[%clk 0:00:02.7]} 30. Ref1 {[%clk 0:01:16.6]}
30... Qb5 {[%clk 0:00:02.5]} 31. h4 {[%clk 0:01:14.1]} 31... Qxc5+ {[%clk
0:00:02.5]} 32. bxc5 {[%clk 0:01:12.5]} 32... Rd8 {[%clk 0:00:02.9]} 33. g4
{[%clk 0:01:08.6]} 33... f6 {[%clk 0:00:03.1]} 34. Rb3 {[%clk 0:01:02.3]} 34...
Rd4 {[%clk 0:00:02.7]} 35. Rxb7 {[%clk 0:00:55.5]} 35... Rxg4 {[%clk 0:00:02.5]}
36. Rd1 {[%clk 0:00:54]} 36... Be4 {[%clk 0:00:02.6]} 37. Rd2 {[%clk 0:00:50.1]}
37... Rxh4 {[%clk 0:00:02.7]} 38. Kf2 {[%clk 0:00:47.3]} 38... Bd5 {[%clk
0:00:03]} 39. Re2 {[%clk 0:00:40.2]} 39... Rg4 {[%clk 0:00:03.2]} 40. g3 {[%clk
0:00:38.5]} 40... Rc4 {[%clk 0:00:03]} 41. Ree7 {[%clk 0:00:37]} 41... Rg4
{[%clk 0:00:03]} 42. Ra7 {[%clk 0:00:35.8]} 42... h5 {[%clk 0:00:01.5]} 43. Rxa6
{[%clk 0:00:35]} 1-0

[Event "*** Titled Tuesday Blitz"]
[Site "Chess.com"]
[Date "2021.04.06"]
[Round "6"]
[White "Michaelson_11"]
[Black "MIJuanReyesRosa"]
[Result "0-1"]
[WhiteElo "2191"]
[BlackElo "1993"]
[TimeControl "180+1"]
[EndTime "11:08:11 PDT"]
[Termination "MIJuanReyesRosa won by resignation"]

1. e4 {[%clk 0:03:00.9]} 1... c5 {[%clk 0:02:59.3]} 2. Nc3 {[%clk 0:03:00.2]}
2... a6 {[%clk 0:02:59.2]} 3. g3 {[%clk 0:02:58]} 3... b5 {[%clk 0:02:58.9]} 4.
Bg2 {[%clk 0:02:58.4]} 4... Bb7 {[%clk 0:02:58.9]} 5. Nge2 {[%clk 0:02:58.5]}
5... e6 {[%clk 0:02:58.9]} 6. O-O {[%clk 0:02:52.2]} 6... d6 {[%clk 0:02:56.3]}
7. d4 {[%clk 0:02:49.2]} 7... cxd4 {[%clk 0:02:55.8]} 8. Nxd4 {[%clk 0:02:49.2]}
8... Qc7 {[%clk 0:02:53.5]} 9. Be3 {[%clk 0:02:47.5]} 9... Nf6 {[%clk
0:02:53.1]} 10. a3 {[%clk 0:02:36.4]} 10... Be7 {[%clk 0:02:52]} 11. f4 {[%clk
0:01:54]} 11... O-O {[%clk 0:02:50.3]} 12. Qe2 {[%clk 0:01:45.4]} 12... Nbd7
{[%clk 0:02:47.1]} 13. f5 {[%clk 0:01:29.4]} 13... e5 {[%clk 0:02:40.4]} 14. Nb3
{[%clk 0:01:20.6]} 14... Nb6 {[%clk 0:02:39.3]} 15. g4 {[%clk 0:01:10.3]} 15...
d5 {[%clk 0:02:22.9]} 16. g5 {[%clk 0:00:52.9]} 16... Nxe4 {[%clk 0:02:22]} 17.
Nxe4 {[%clk 0:00:52.3]} 17... dxe4 {[%clk 0:02:21.6]} 18. f6 {[%clk 0:00:51.8]}
18... Bd6 {[%clk 0:02:00.4]} 19. fxg7 {[%clk 0:00:48.4]} 19... Rfe8 {[%clk
0:01:56.7]} 20. Nd2 {[%clk 0:00:29.8]} 20... Nc4 {[%clk 0:01:28.6]} 21. Nxc4
{[%clk 0:00:17.1]} 21... Qxc4 {[%clk 0:01:25.9]} 22. Qf2 {[%clk 0:00:16.2]}
22... Rac8 {[%clk 0:01:20.6]} 23. Bh3 {[%clk 0:00:14.1]} 23... Rc7 {[%clk
0:01:01.3]} 24. Rad1 {[%clk 0:00:14.6]} 24... Bc5 {[%clk 0:00:51.8]} 25. Bxc5
{[%clk 0:00:14.3]} 25... Qxc5 {[%clk 0:00:45.7]} 26. Qxc5 {[%clk 0:00:14.3]}
26... Rxc5 {[%clk 0:00:45.6]} 27. Rd7 {[%clk 0:00:14.3]} 27... Bc8 {[%clk
0:00:35.4]} 28. Rdxf7 {[%clk 0:00:10.3]} 28... Bxh3 {[%clk 0:00:32.6]} 29. Rf8+
{[%clk 0:00:10.4]} 29... Kxg7 {[%clk 0:00:32.8]} 30. Rxe8 {[%clk 0:00:07.3]}
30... Rxc2 {[%clk 0:00:32.9]} 31. Re7+ {[%clk 0:00:06.8]} 31... Kg6 {[%clk
0:00:30.9]} 32. Rf6+ {[%clk 0:00:06.6]} 32... Kxg5 {[%clk 0:00:30.2]} 33. Ref7
{[%clk 0:00:06.1]} 33... e3 {[%clk 0:00:23.5]} 34. Rf3 {[%clk 0:00:03.6]} 34...
Rc1+ {[%clk 0:00:21.4]} 0-1

[Event "*** Titled Tuesday Blitz"]
[Site "Chess.com"]
[Date "2021.04.06"]
[Round "6"]
[White "ellennilssen"]
[Black "ChainsOfFantasia"]
[Result "0-1"]
[WhiteElo "2241"]
[BlackElo "2416"]
[TimeControl "180+1"]
[EndTime "11:08:12 PDT"]
[Termination "ChainsOfFantasia won by resignation"]

1. Nf3 {[%clk 0:03:00.9]} 1... Nf6 {[%clk 0:02:55]} 2. c4 {[%clk 0:03:00.2]}
2... e6 {[%clk 0:02:52.6]} 3. Nc3 {[%clk 0:02:59.7]} 3... d5 {[%clk 0:02:52.7]}
4. d4 {[%clk 0:02:57.4]} 4... Be7 {[%clk 0:02:50.4]} 5. cxd5 {[%clk 0:02:55.7]}
5... exd5 {[%clk 0:02:48.7]} 6. Bg5 {[%clk 0:02:54.7]} 6... O-O {[%clk
0:02:48.8]} 7. e3 {[%clk 0:02:53.7]} 7... h6 {[%clk 0:02:44.6]} 8. Bh4 {[%clk
0:02:50.4]} 8... c6 {[%clk 0:02:44.8]} 9. Bd3 {[%clk 0:02:49.4]} 9... Re8 {[%clk
0:02:41.4]} 10. Qc2 {[%clk 0:02:48.6]} 10... Na6 {[%clk 0:02:37.7]} 11. a3
{[%clk 0:02:47.6]} 11... Be6 {[%clk 0:02:33.3]} 12. h3 {[%clk 0:02:45.8]} 12...
Rc8 {[%clk 0:02:32]} 13. b4 {[%clk 0:02:41.9]} 13... Nb8 {[%clk 0:01:53.4]} 14.
O-O {[%clk 0:02:40.7]} 14... Nbd7 {[%clk 0:01:51.8]} 15. Qb2 {[%clk 0:02:34.3]}
15... b5 {[%clk 0:01:42.7]} 16. a4 {[%clk 0:02:30.9]} 16... a6 {[%clk
0:01:42.8]} 17. axb5 {[%clk 0:02:30.9]} 17... axb5 {[%clk 0:01:42.1]} 18. Ra6
{[%clk 0:02:22.4]} 18... Nb6 {[%clk 0:01:40.3]} 19. Ne5 {[%clk 0:02:22.1]} 19...
Nfd7 {[%clk 0:01:29.2]} 20. Bxe7 {[%clk 0:02:19.7]} 20... Rxe7 {[%clk
0:01:26.2]} 21. Nxd7 {[%clk 0:02:11.4]} 21... Rxd7 {[%clk 0:01:19.8]} 22. Re1
{[%clk 0:02:01.9]} 22... Rb7 {[%clk 0:01:07.8]} 23. Ne2 {[%clk 0:01:46]} 23...
Qd7 {[%clk 0:01:05.2]} 24. Nf4 {[%clk 0:01:46]} 24... Bf5 {[%clk 0:01:02.1]} 25.
Rc1 {[%clk 0:01:44.1]} 25... g5 {[%clk 0:00:48.9]} 26. Bxf5 {[%clk 0:01:41.6]}
26... Qxf5 {[%clk 0:00:46.8]} 27. Ne2 {[%clk 0:01:35.8]} 27... Nc4 {[%clk
0:00:46.7]} 28. Qa2 {[%clk 0:01:33.2]} 28... Kg7 {[%clk 0:00:40.8]} 29. Ng3
{[%clk 0:01:29.3]} 29... Qg6 {[%clk 0:00:34.6]} 30. Nf1 {[%clk 0:01:27.9]} 30...
h5 {[%clk 0:00:34.3]} 31. Nd2 {[%clk 0:01:26.9]} 31... g4 {[%clk 0:00:33.9]} 32.
hxg4 {[%clk 0:01:25.7]} 32... hxg4 {[%clk 0:00:33.6]} 33. Nxc4 {[%clk
0:01:20.9]} 33... bxc4 {[%clk 0:00:33.5]} 34. Qa4 {[%clk 0:01:18.8]} 34... g3
{[%clk 0:00:29.6]} 35. f3 {[%clk 0:01:06.5]} 35... Re7 {[%clk 0:00:19.9]} 36. b5
{[%clk 0:00:46.2]} 36... Rxe3 {[%clk 0:00:12.2]} 37. Rxc6 {[%clk 0:00:43.6]}
37... Qh5 {[%clk 0:00:09]} 38. Rh6 {[%clk 0:00:21.3]} 38... Qxh6 {[%clk
0:00:08]} 0-1

[Event "*** Titled Tuesday Blitz"]
[Site "Chess.com"]
[Date "2021.04.06"]
[Round "6"]
[White "DonBroca"]
[Black "MaxLeto"]
[Result "1-0"]
[WhiteElo "2220"]
[BlackElo "2348"]
[TimeControl "180+1"]
[EndTime "11:08:12 PDT"]
[Termination "DonBroca won on time"]

1. e4 {[%clk 0:03:00.9]} 1... c5 {[%clk 0:02:56.6]} 2. Nf3 {[%clk 0:03:00.5]}
2... d6 {[%clk 0:02:56.6]} 3. d4 {[%clk 0:03:01.4]} 3... cxd4 {[%clk 0:02:57.5]}
4. Nxd4 {[%clk 0:03:01.8]} 4... Nf6 {[%clk 0:02:58]} 5. Nc3 {[%clk 0:03:02.4]}
5... a6 {[%clk 0:02:58.2]} 6. f3 {[%clk 0:03:01.6]} 6... e6 {[%clk 0:02:57.3]}
7. Be3 {[%clk 0:03:02]} 7... b5 {[%clk 0:02:57.1]} 8. Qd2 {[%clk 0:03:01.9]}
8... Nbd7 {[%clk 0:02:56.6]} 9. g4 {[%clk 0:03:01.3]} 9... h6 {[%clk 0:02:54.6]}
10. h4 {[%clk 0:03:00.6]} 10... b4 {[%clk 0:02:54]} 11. Na4 {[%clk 0:02:59.1]}
11... d5 {[%clk 0:02:53.5]} 12. O-O-O {[%clk 0:02:33.2]} 12... dxe4 {[%clk
0:02:40.4]} 13. g5 {[%clk 0:02:33.1]} 13... hxg5 {[%clk 0:02:38.9]} 14. Bxg5
{[%clk 0:02:33.5]} 14... Bb7 {[%clk 0:02:18.3]} 15. Bg2 {[%clk 0:02:14]} 15...
Qa5 {[%clk 0:02:13.7]} 16. b3 {[%clk 0:02:13.2]} 16... O-O-O {[%clk 0:01:54.1]}
17. fxe4 {[%clk 0:01:46.4]} 17... Nc5 {[%clk 0:01:46.3]} 18. e5 {[%clk
0:01:23.1]} 18... Nfe4 {[%clk 0:01:34.8]} 19. Bxe4 {[%clk 0:01:05.7]} 19... Nxe4
{[%clk 0:01:35.7]} 20. Qd3 {[%clk 0:00:58.6]} 20... Nxg5 {[%clk 0:01:26.9]} 21.
Qc4+ {[%clk 0:00:50.4]} 21... Qc7 {[%clk 0:01:13.6]} 22. Nb6+ {[%clk 0:00:27.4]}
22... Kb8 {[%clk 0:01:12.6]} 23. Nc6+ {[%clk 0:00:26.6]} 23... Qxc6 {[%clk
0:00:16.4]} 24. Rxd8+ {[%clk 0:00:27.5]} 24... Kc7 {[%clk 0:00:15.8]} 25. Rhd1
{[%clk 0:00:10.4]} 25... Qxc4 {[%clk 0:00:06.2]} 26. Nxc4 {[%clk 0:00:11.3]}
26... Ne4 {[%clk 0:00:04.4]} 27. R1d7+ {[%clk 0:00:09.9]} 27... Kc6 {[%clk
0:00:03.2]} 28. Na5+ {[%clk 0:00:08.5]} 28... Kb5 {[%clk 0:00:03.6]} 29. Nxb7
{[%clk 0:00:07.1]} 29... Rxh4 {[%clk 0:00:02.7]} 30. Nd6+ {[%clk 0:00:05.4]}
30... Bxd6 {[%clk 0:00:01.2]} 31. exd6 {[%clk 0:00:06]} 1-0

[Event "*** Titled Tuesday Blitz"]
[Site "Chess.com"]
[Date "2021.04.06"]
[Round "6"]
[White "mariofs"]
[Black "JQuiroga18"]
[Result "0-1"]
[WhiteElo "2213"]
[BlackElo "2418"]
[TimeControl "180+1"]
[EndTime "11:08:13 PDT"]
[Termination "JQuiroga18 won by checkmate"]

1. d4 {[%clk 0:03:00.9]} 1... Nf6 {[%clk 0:02:58.8]} 2. c4 {[%clk 0:02:59.1]}
2... c5 {[%clk 0:02:58.4]} 3. Nf3 {[%clk 0:02:58.8]} 3... e6 {[%clk 0:02:57.4]}
4. Nc3 {[%clk 0:02:53.9]} 4... cxd4 {[%clk 0:02:54.9]} 5. Nxd4 {[%clk
0:02:54.8]} 5... a6 {[%clk 0:02:54.8]} 6. e4 {[%clk 0:02:52.8]} 6... Qc7 {[%clk
0:02:54.6]} 7. Be3 {[%clk 0:02:50.2]} 7... b6 {[%clk 0:02:54.7]} 8. Be2 {[%clk
0:02:45.8]} 8... Bb7 {[%clk 0:02:55.1]} 9. f3 {[%clk 0:02:44.3]} 9... d6 {[%clk
0:02:55.6]} 10. O-O {[%clk 0:02:44.1]} 10... Nbd7 {[%clk 0:02:55.9]} 11. Rc1
{[%clk 0:02:43.7]} 11... Be7 {[%clk 0:02:56.2]} 12. a3 {[%clk 0:02:38.6]} 12...
Rc8 {[%clk 0:02:52.6]} 13. Kh1 {[%clk 0:02:38]} 13... h5 {[%clk 0:02:52.2]} 14.
Qc2 {[%clk 0:02:35.4]} 14... h4 {[%clk 0:02:52.2]} 15. b3 {[%clk 0:02:33]} 15...
h3 {[%clk 0:02:51.9]} 16. g3 {[%clk 0:02:32.8]} 16... Ne5 {[%clk 0:02:50.3]} 17.
Qd2 {[%clk 0:02:30.3]} 17... Qb8 {[%clk 0:02:45]} 18. Na4 {[%clk 0:02:27.5]}
18... Bd8 {[%clk 0:02:33]} 19. Bg1 {[%clk 0:02:17.7]} 19... Bc7 {[%clk
0:02:30.8]} 20. Qd1 {[%clk 0:02:11.2]} 20... Qa8 {[%clk 0:02:29.4]} 21. Qd2
{[%clk 0:02:07.2]} 21... Nxe4 {[%clk 0:02:24.6]} 22. Qe3 {[%clk 0:01:47.8]}
22... Ng4 {[%clk 0:02:10.9]} 23. Qf4 {[%clk 0:01:36.8]} 23... Nef6 {[%clk
0:01:54.4]} 24. Rce1 {[%clk 0:01:18.5]} 24... e5 {[%clk 0:01:39.1]} 25. Bd1
{[%clk 0:01:17.3]} 25... O-O {[%clk 0:01:36.7]} 26. Qg5 {[%clk 0:01:12.3]} 26...
exd4 {[%clk 0:01:34.9]} 27. Bxd4 {[%clk 0:01:13.2]} 27... Ne5 {[%clk 0:01:24.8]}
28. Qf4 {[%clk 0:00:44.9]} 28... Rfe8 {[%clk 0:01:21.8]} 29. Kg1 {[%clk
0:00:43.5]} 29... Ng6 {[%clk 0:01:05.2]} 30. Qf5 {[%clk 0:00:37]} 30... Rxe1
{[%clk 0:01:04.6]} 31. Rxe1 {[%clk 0:00:37.5]} 31... Re8 {[%clk 0:01:04.6]} 32.
Rxe8+ {[%clk 0:00:31.7]} 32... Qxe8 {[%clk 0:01:05.5]} 33. Kf2 {[%clk
0:00:29.1]} 33... Ne5 {[%clk 0:01:02.9]} 34. Nxb6 {[%clk 0:00:19.4]} 34... Bxb6
{[%clk 0:00:57.7]} 35. Bxb6 {[%clk 0:00:20.3]} 35... Qc6 {[%clk 0:00:55.6]} 36.
Bd4 {[%clk 0:00:20.2]} 36... Nfd7 {[%clk 0:00:48.3]} 37. Bxe5 {[%clk 0:00:18.2]}
37... Nxe5 {[%clk 0:00:45.9]} 38. g4 {[%clk 0:00:13.6]} 38... Qc5+ {[%clk
0:00:44.9]} 39. Kg3 {[%clk 0:00:13.9]} 39... Qg1+ {[%clk 0:00:44]} 40. Kxh3
{[%clk 0:00:14.1]} 40... Qxd1 {[%clk 0:00:42.9]} 41. Kg3 {[%clk 0:00:13.6]}
41... Qg1+ {[%clk 0:00:37.9]} 42. Kf4 {[%clk 0:00:13.4]} 42... Qd4+ {[%clk
0:00:37.4]} 43. Kg3 {[%clk 0:00:13.4]} 43... Nxf3 {[%clk 0:00:36.6]} 44. h3
{[%clk 0:00:09.2]} 44... Qg1+ {[%clk 0:00:32.4]} 45. Kf4 {[%clk 0:00:08.2]}
45... Qh2+ {[%clk 0:00:32.4]} 46. Ke3 {[%clk 0:00:07.6]} 46... Qd2# {[%clk
0:00:32.3]} 0-1